fUST/lending_fUST_20240105
["ID","MTS","AMOUNT","RATE_DAILY","PERIOD"]
[310210483,1704401438629,-60.06250377,0.00037285,2]
[310210484,1704401438639,-178.5431189,0.00037288,2]
[310210485,1704401438648,-484.9691526,0.00037588,4]
[310210486,1704401438658,-623.65,0.0003776,3]
[310210487,1704401438669,-1189.25,0.0003776,3]
[310210488,1704401438679,-991.04,0.0003776,3]
[310210489,1704401438690,-825.87,0.0003776,3]
[310210490,1704401438700,-590.45108746,0.00037768,2]
[310210491,1704401438709,-309.58207117,0.00037768,4]
[310210492,1704401438719,-630.15850281,0.00037768,2]
[310210493,1704401438729,-473.67051809,0.00037768,4]
[310210494,1704401438741,-214.46221799,0.00037769,4]
[310210495,1704401438751,-28226.42132887,0.0003777,30]
[310210496,1704401438894,-5137.98663596,0.0003777,30]
[310210539,1704401445329,-19669.33553452,0.0003777,30]
[310210541,1704401445338,-380.37426702,0.00037898,2]
[310210542,1704401445347,-155.0,0.00037904,2]
[310210544,1704401445358,-154.81422293,0.00038,7]
[310210546,1704401445368,-41647.36097539,0.00038,30]
[310210548,1704401445377,-2130.31060018,0.00038,4]
[310210550,1704401445386,-1485.21853168,0.00038,120]
[310210552,1704401445396,-379.48356558,0.00038,4]
[310210553,1704401445405,-3264.74,0.00038146,3]
[310210554,1704401445414,-129755.06797623,0.00038156,2]
[310210557,1704401445425,-10482.40745543,0.00038156,2]
[310210559,1704401445437,-3660.57059186,0.00038156,2]
[310210561,1704401445449,-5844.8661105,0.00038156,2]
[310210580,1704401445557,-9169.56909697,0.00038156,2]
[310210583,1704401445569,-252.51254836,0.00038156,2]
[310210664,1704401446101,-387.94305771,0.00038155,4]
[310210666,1704401446110,-116835.00622065,0.00038156,2]
[310210668,1704401446120,-167.83,0.00038178,2]
[310210670,1704401446129,-167.83,0.00038178,2]
[310210672,1704401446138,-167.83,0.00038178,2]
[310210674,1704401446147,-167.83,0.00038178,2]
[310210677,1704401446156,-167.83,0.00038178,2]
[310210680,1704401446165,-167.83,0.00038178,2]
[310210683,1704401446174,-167.83,0.00038178,2]
[310210687,1704401446184,-167.83,0.00038178,2]
[310210691,1704401446193,-167.83,0.00038178,2]
[310210695,1704401446203,-167.83,0.00038178,2]
[310210700,1704401446213,-167.83,0.00038178,2]
[310210704,1704401446223,-246.32842368,0.00038178,2]
[310210706,1704401446233,-1365.37708364,0.00038243,25]
[310210710,1704401446242,-4000.0,0.00038254,2]
[310210714,1704401446253,-13676.29394445,0.00038354,2]
[310210718,1704401446263,-391.3543844,0.00038354,2]
[310210721,1704401446272,-3707.71891533,0.00038355,4]
[310210725,1704401446282,-1029.24597412,0.00038355,4]
[310210729,1704401446294,-5930.79103149,0.00038355,2]
[310210733,1704401446305,-228.93519686,0.00038356,3]
[310210737,1704401446315,-151.0,0.00038356,2]
[310210740,1704401446325,-280.751598,0.00038356,2]
[310210744,1704401446335,-280.751598,0.00038356,2]
[310210749,1704401446346,-151.0,0.00038356,2]
[310210752,1704401446355,-151.0,0.00038356,2]
[310210755,1704401446365,-368.333129,0.00038356,2]
[310210759,1704401446375,-368.333129,0.00038356,2]
[310210763,1704401446385,-1606.58123388,0.00038356,7]
[310210766,1704401446394,-500.0,0.00038356,7]
[310210770,1704401446404,-501.82954482,0.00038356,7]
[310210772,1704401446414,-501.49144187,0.00038356,7]
[310210777,1704401446425,-500.0,0.00038356,7]
[310210778,1704401446437,-500.0,0.00038356,7]
[310210781,1704401446448,-500.0,0.00038356,7]
[310210784,1704401446458,-500.0,0.00038356,7]
[310210786,1704401446468,-910.79,0.00038356,7]
[310210789,1704401446478,-500.0,0.00038356,7]
[310210792,1704401446487,-500.0,0.00038356,7]
[310210795,1704401446497,-500.0,0.00038356,7]
[310210797,1704401446506,-500.0,0.00038356,7]
[310210799,1704401446516,-701.28,0.00038356,7]
[310210801,1704401446525,-500.0,0.00038356,7]
[310210803,1704401446535,-500.0,0.00038356,7]
[310210805,1704401446545,-500.0,0.00038356,7]
[310210807,1704401446555,-500.0,0.00038356,7]
[310210809,1704401446565,-150.0,0.00038356,7]
[310210811,1704401446574,-510.96061953,0.00038356,7]
[310210813,1704401446584,-500.0,0.00038356,7]
[310210815,1704401446593,-500.0,0.00038356,7]
[310210816,1704401446603,-500.0,0.00038356,7]
[310210818,1704401446612,-518.88000988,0.00038356,7]
[310210820,1704401446621,-500.0,0.00038356,7]
[310210822,1704401446630,-500.0,0.00038356,7]
[310210824,1704401446640,-601.17836622,0.00038356,7]
[310210826,1704401446650,-500.0,0.00038356,7]
[310210828,1704401446659,-500.0,0.00038356,7]
[310210830,1704401446668,-500.0,0.00038356,7]
[310210832,1704401446677,-500.0,0.00038356,7]
[310210834,1704401446686,-500.0,0.00038356,7]
[310210836,1704401446695,-501.29559852,0.00038356,7]
[310210837,1704401446704,-500.0,0.00038356,7]
[310210839,1704401446714,-500.0,0.00038356,7]
[310210841,1704401446723,-500.0,0.00038356,7]
[310210843,1704401446732,-559.86303102,0.00038356,7]
[310210845,1704401446741,-500.0,0.00038356,7]
[310210847,1704401446751,-500.0,0.00038356,7]
[310210849,1704401446760,-500.0,0.00038356,7]
[310210851,1704401446770,-500.0,0.00038356,7]
[310210853,1704401446779,-557.69577833,0.00038356,7]
[310210855,1704401446789,-598.96,0.00038356,7]
[310210857,1704401446799,-500.0,0.00038356,7]
[310210859,1704401446807,-500.0,0.00038356,7]
[310210861,1704401446817,-500.0,0.00038356,7]
[310210863,1704401446826,-500.0,0.00038356,7]
[310210865,1704401446835,-500.0,0.00038356,7]
[310210867,1704401446844,-1289.95,0.00038356,7]
[310210869,1704401446853,-500.0,0.00038356,7]
[310210871,1704401446863,-500.0,0.00038356,7]
[310210872,1704401446872,-500.0,0.00038356,7]
[310210874,1704401446882,-500.0,0.00038356,7]
[310210876,1704401446891,-500.0,0.00038356,7]
[310210878,1704401446900,-500.0,0.00038356,7]
[310210880,1704401446910,-500.0,0.00038356,7]
[310210882,1704401446919,-500.0,0.00038356,7]
[310210884,1704401446928,-998.9,0.00038356,7]
[310210886,1704401446938,-500.0,0.00038356,7]
[310210888,1704401446948,-633.41446497,0.00038356,7]
[310210890,1704401446957,-869.47,0.00038356,7]
[310210892,1704401446966,-500.0,0.00038356,7]
[310210894,1704401446975,-196.02475645,0.00038356,7]
[310210896,1704401446984,-500.0,0.00038356,7]
[310210898,1704401446994,-500.0,0.00038356,7]
[310210900,1704401447004,-500.0,0.00038356,2]
[310210902,1704401447012,-500.0,0.00038356,7]
[310210904,1704401447022,-379.37773808,0.00038356,2]
[310210906,1704401447031,-503.01647509,0.00038356,7]
[310210908,1704401447041,-502.46968567,0.00038356,2]
[310210909,1704401447050,-554.24,0.00038356,2]
[310210911,1704401447059,-500.0,0.00038356,7]
[310210913,1704401447068,-500.0,0.00038356,7]
[310210915,1704401447078,-225.47993277,0.00038356,2]
[310210917,1704401447088,-500.0,0.00038356,7]
[310210919,1704401447097,-2062.5,0.00038356,2]
[310210921,1704401447107,-500.0,0.00038356,7]
[310210923,1704401447117,-5000.0,0.00038356,10]
[310210925,1704401447126,-500.0,0.00038356,7]
[310210927,1704401447136,-1249.46,0.00038356,7]
[310210929,1704401447146,-839.05,0.00038356,7]
[310210931,1704401447155,-500.0,0.00038356,2]
[310210933,1704401447165,-2020.5,0.00038356,7]
[310210935,1704401447174,-500.0,0.00038356,7]
[310210937,1704401447183,-500.0,0.00038356,7]
[310210939,1704401447193,-501.94765113,0.00038356,7]
[310210941,1704401447202,-500.0,0.00038356,7]
[310210943,1704401447212,-500.0,0.00038356,7]
[310210944,1704401447221,-500.0,0.00038356,7]
[310210946,1704401447233,-508.78543536,0.00038356,7]
[310210948,1704401447243,-500.0,0.00038356,7]
[310210950,1704401447254,-500.0,0.00038356,7]
[310210952,1704401447264,-247.2489728,0.00038356,7]
[310210954,1704401447273,-500.0,0.00038356,7]
[310210956,1704401447284,-500.0,0.00038356,7]
[310210958,1704401447295,-1000.0,0.00038356,2]
[310210960,1704401447304,-524.58,0.00038356,7]
[310210961,1704401447313,-500.0,0.00038356,7]
[310210963,1704401447323,-500.0,0.00038356,7]
[310210965,1704401447333,-549.02777613,0.00038356,7]
[310210967,1704401447342,-500.0,0.00038356,7]
[310210969,1704401447352,-500.0,0.00038356,7]
[310210971,1704401447362,-500.0,0.00038356,7]
[310210973,1704401447371,-500.0,0.00038356,7]
[310210987,1704401447493,-500.0,0.00038356,7]
[310210989,1704401447503,-500.0,0.00038356,7]
[310210991,1704401447513,-500.0,0.00038356,7]
[310210993,1704401447522,-500.0,0.00038356,7]
[310210995,1704401447532,-500.0,0.00038356,7]
[310210997,1704401447541,-526.83251087,0.00038356,7]
[310210999,1704401447550,-914.1,0.00038356,7]
[310211001,1704401447559,-220.0,0.00038356,2]
[310211003,1704401447568,-500.0,0.00038356,7]
[310211005,1704401447577,-247.15411588,0.00038356,7]
[310211007,1704401447586,-500.0,0.00038356,7]
[310211009,1704401447595,-502.99457227,0.00038356,7]
[310211011,1704401447604,-500.0,0.00038356,7]
[310211013,1704401447613,-500.0,0.00038356,7]
[310211015,1704401447622,-509.71495239,0.00038356,7]
[310211017,1704401447631,-203.245361,0.00038356,7]
[310211019,1704401447640,-369.5718302,0.00038356,7]
[310211021,1704401447649,-500.0,0.00038356,7]
[310211023,1704401447659,-501.0357112,0.00038356,7]
[310211025,1704401447667,-500.0,0.00038356,7]
[310211027,1704401447677,-500.0,0.00038356,7]
[310211028,1704401447686,-504.46693203,0.00038356,7]
[310211030,1704401447695,-501.74184182,0.00038356,2]
[310211032,1704401447704,-500.0,0.00038356,7]
[310211034,1704401447713,-503.55951807,0.00038356,7]
[310211036,1704401447722,-500.0,0.00038356,7]
[310211038,1704401447731,-500.0,0.00038356,7]
[310211040,1704401447740,-516.93241572,0.00038356,7]
[310211042,1704401447749,-500.0,0.00038356,7]
[310211044,1704401447759,-500.0,0.00038356,7]
[310211046,1704401447767,-500.0,0.00038356,7]
[310211048,1704401447776,-531.22656994,0.00038356,7]
[310211050,1704401447785,-451.62976484,0.00038356,7]
[310211052,1704401447794,-501.96916016,0.00038356,7]
[310211054,1704401447803,-500.0,0.00038356,7]
[310211056,1704401447813,-500.0,0.00038356,7]
[310211058,1704401447822,-500.0,0.00038356,7]
[310211060,1704401447831,-1000.0,0.00038356,5]
[310211061,1704401447840,-500.0,0.00038356,7]
[310211062,1704401447850,-902.58,0.00038356,7]
[310211063,1704401447859,-1329.14,0.00038356,7]
[310211064,1704401447868,-500.0,0.00038356,7]
[310211065,1704401447879,-500.0,0.00038356,7]
[310211066,1704401447889,-500.0,0.00038356,7]
[310211067,1704401447902,-502.01151836,0.00038356,7]
[310211068,1704401447912,-586.56,0.00038356,7]
[310211069,1704401447924,-345.03964036,0.00038356,7]
[310211070,1704401447934,-500.0,0.00038356,7]
[310211071,1704401447943,-500.0,0.00038356,7]
[310211072,1704401447953,-500.0,0.00038356,7]
[310211073,1704401447962,-495.38104262,0.00038356,7]
[310211075,1704401447971,-516.47422852,0.00038356,30]
[310211077,1704401447981,-4549.5,0.00038356,7]
[310211078,1704401447992,-500.0,0.00038356,7]
[310211080,1704401448001,-719.59,0.00038356,7]
[310211082,1704401448010,-500.0,0.00038356,7]
[310211084,1704401448019,-399.35236744,0.00038356,7]
[310211086,1704401448028,-500.0,0.00038356,7]
[310211088,1704401448038,-500.0,0.00038356,7]
[310211090,1704401448046,-500.0,0.00038356,7]
[310211092,1704401448056,-1656.09,0.00038356,7]
[310211094,1704401448065,-867.44,0.00038356,7]
[310211096,1704401448074,-500.0,0.00038356,7]
[310211098,1704401448083,-500.0,0.00038356,7]
[310211100,1704401448093,-501.34983078,0.00038356,7]
[310211102,1704401448102,-500.0,0.00038356,7]
[310211104,1704401448111,-500.0,0.00038356,7]
[310211106,1704401448122,-560.84728984,0.00038356,7]
[310211108,1704401448133,-500.0,0.00038356,7]
[310211110,1704401448142,-2164.74,0.00038356,7]
[310211112,1704401448151,-500.0,0.00038356,7]
[310211114,1704401448161,-500.0,0.00038356,7]
[310211116,1704401448170,-500.0,0.00038356,7]
[310211118,1704401448179,-506.00434185,0.00038356,7]
[310211120,1704401448188,-500.0,0.00038356,7]
[310211122,1704401448198,-500.0,0.00038356,7]
[310211124,1704401448207,-500.0,0.00038356,7]
[310211126,1704401448217,-690.01,0.00038356,7]
[310211128,1704401448226,-510.54073913,0.00038356,7]
[310211129,1704401448236,-754.97,0.00038356,7]
[310211131,1704401448245,-500.0,0.00038356,7]
[310211133,1704401448255,-500.0,0.00038356,7]
[310211135,1704401448265,-500.0,0.00038356,7]
[310211137,1704401448275,-502.22444369,0.00038356,7]
[310211139,1704401448284,-244.19954149,0.00038356,7]
[310211141,1704401448295,-500.0,0.00038356,7]
[310211143,1704401448305,-504.55068619,0.00038356,7]
[310211145,1704401448314,-1003.32,0.00038356,7]
[310211147,1704401448323,-217.31430341,0.00038356,7]
[310211149,1704401448334,-516.57344766,0.00038356,7]
[310211151,1704401448343,-500.0,0.00038356,7]
[310211153,1704401448353,-500.0,0.00038356,7]
[310211155,1704401448363,-500.0,0.00038356,7]
[310211157,1704401448373,-500.0,0.00038356,7]
[310211159,1704401448382,-253.20090575,0.00038356,7]
[310211161,1704401448392,-515.95010387,0.00038356,7]
[310211163,1704401448401,-500.0,0.00038356,7]
[310211165,1704401448411,-202.16377138,0.00038356,7]
[310211167,1704401448420,-571.84505234,0.00038356,7]
[310211169,1704401448430,-500.0,0.00038356,7]
[310211171,1704401448439,-500.0,0.00038356,7]
[310211173,1704401448448,-512.64648022,0.00038356,7]
[310211175,1704401448457,-1886.66,0.00038356,7]
[310211177,1704401448467,-500.0,0.00038356,7]
[310211179,1704401448476,-354.58372337,0.00038356,7]
[310211181,1704401448486,-505.41670145,0.00038356,7]
[310211183,1704401448495,-500.0,0.00038356,7]
[310211185,1704401448505,-500.0,0.00038356,7]
[310211187,1704401448514,-500.0,0.00038356,7]
[310211189,1704401448524,-500.0,0.00038356,7]
[310211191,1704401448533,-500.0,0.00038356,7]
[310211193,1704401448542,-500.0,0.00038356,7]
[310211195,1704401448551,-500.0,0.00038356,7]
[310211197,1704401448560,-500.0,0.00038356,7]
[310211199,1704401448570,-1577.87,0.00038356,7]
[310211200,1704401448579,-500.0,0.00038356,7]
[310211203,1704401448588,-500.0,0.00038356,7]
[310211204,1704401448598,-501.267943,0.00038356,7]
[310211207,1704401448607,-500.0,0.00038356,7]
[310211208,1704401448617,-500.0,0.00038356,7]
[310211211,1704401448626,-311.17754081,0.00038356,7]
[310211212,1704401448636,-503.54358463,0.00038356,7]
[310211213,1704401448646,-500.0,0.00038356,7]
[310211214,1704401448655,-500.0,0.00038356,7]
[310211215,1704401448664,-717.36,0.00038356,7]
[310211216,1704401448673,-500.82455158,0.00038356,7]
[310211217,1704401448683,-500.0,0.00038356,7]
[310211218,1704401448692,-500.0,0.00038356,7]
[310211219,1704401448701,-500.0,0.00038356,7]
[310211220,1704401448710,-500.0,0.00038356,7]
[310211221,1704401448719,-500.0,0.00038356,7]
[310211223,1704401448728,-551.69,0.00038356,7]
[310211225,1704401448738,-500.0,0.00038356,7]
[310211227,1704401448748,-500.0,0.00038356,7]
[310211229,1704401448759,-500.0,0.00038356,7]
[310211232,1704401448768,-500.0,0.00038356,7]
[310211234,1704401448777,-500.0,0.00038356,7]
[310211235,1704401448787,-500.0,0.00038356,7]
[310211237,1704401448797,-500.0,0.00038356,7]
[310211240,1704401448807,-230.70828406,0.00038356,7]
[310211242,1704401448817,-574.68684892,0.00038356,7]
[310211244,1704401448827,-500.0,0.00038356,7]
[310211246,1704401448836,-500.0,0.00038356,7]
[310211248,1704401448846,-500.0,0.00038356,7]
[310211250,1704401448856,-500.0,0.00038356,7]
[310211252,1704401448865,-501.87283505,0.00038356,7]
[310211254,1704401448875,-500.0,0.00038356,7]
[310211256,1704401448885,-533.64488153,0.00038356,7]
[310211258,1704401448894,-500.0,0.00038356,7]
[310211259,1704401448903,-500.0,0.00038356,7]
[310211261,1704401448912,-500.0,0.00038356,7]
[310211263,1704401448922,-436.5382808,0.00038356,7]
[310211264,1704401448932,-500.0,0.00038356,7]
[310211266,1704401448941,-2071.39,0.00038356,7]
[310211268,1704401448950,-500.0,0.00038356,7]
[310211270,1704401448959,-500.0,0.00038356,7]
[310211272,1704401448969,-514.66008108,0.00038356,7]
[310211274,1704401448978,-413.73400645,0.00038356,7]
[310211276,1704401448988,-527.79837527,0.00038356,7]
[310211278,1704401448998,-863.42,0.00038356,7]
[310211280,1704401449008,-500.0,0.00038356,7]
[310211282,1704401449018,-500.0,0.00038356,7]
[310211284,1704401449027,-500.0,0.00038356,7]
[310211286,1704401449037,-500.0,0.00038356,7]
[310211288,1704401449046,-500.0,0.00038356,7]
[310211290,1704401449055,-500.0,0.00038356,7]
[310211292,1704401449065,-9730.7,0.00038356,7]
[310211294,1704401449075,-596.820312,0.00038356,7]
[310211296,1704401449085,-736.13,0.00038356,7]
[310211298,1704401449095,-1598.53,0.00038356,7]
[310211300,1704401449105,-546.7567977,0.00038356,7]
[310211302,1704401449115,-500.72493937,0.00038356,7]
[310211304,1704401449124,-10543.73,0.00038356,7]
[310211306,1704401449134,-500.0,0.00038356,7]
[310211308,1704401449143,-500.0,0.00038356,7]
[310211310,1704401449153,-500.0,0.00038356,7]
[310211312,1704401449163,-3117.13343013,0.00038356,2]
[310211314,1704401449172,-500.0,0.00038356,7]
[310211316,1704401449182,-1823.42,0.00038356,7]
[310211318,1704401449191,-500.0,0.00038356,7]
[310211320,1704401449201,-901.35320597,0.00038356,7]
[310212396,1704402441079,-265.01794046,0.00027122,2]
[310212397,1704402441099,-156.63971141,0.00027122,2]
[310212398,1704402441119,-273.22384269,0.00027122,2]
[310212399,1704402441142,-154.75239617,0.00027123,4]
[310212400,1704402441164,-154.75239617,0.00027124,2]
[310212401,1704402441190,-20.14855668,0.00027124,2]
[310212402,1704402444105,-1576.61622724,0.00027121,2]
[310212403,1704402444126,-2027.50790733,0.00027122,2]
[310212404,1704402444146,-2508.98219236,0.00027123,2]
[310212405,1704402444166,-1564.98883234,0.00027124,2]
[310212406,1704402444185,-508.50377759,0.00027125,2]
[310212407,1704402444205,-466.2089925,0.00027125,2]
[310212408,1704402444227,-235.68021843,0.00027125,2]
[310212409,1704402444247,-253.22751891,0.00027125,2]
[310212410,1704402444271,-154.76784823,0.00027126,2]
[310212411,1704402444292,-343.52308259,0.00027126,2]
[310212412,1704402444315,-524.96234709,0.00027126,2]
[310212413,1704402444336,-212.67163283,0.00027127,2]
[310212414,1704402444356,-154.76784823,0.00027127,2]
[310212415,1704402444377,-2032.04564268,0.00027127,2]
[310212416,1704402444396,-300.90710515,0.00027128,2]
[310212417,1704402444417,-154.76784823,0.00027129,2]
[310212418,1704402444437,-154.76784823,0.00027129,2]
[310212419,1704402444458,-1211.44632189,0.00027129,2]
[310212420,1704402444477,-230.18795146,0.0002713,2]
[310212421,1704402444498,-154.76784823,0.0002713,2]
[310212422,1704402444519,-2090.62355962,0.0002713,2]
[310212423,1704402444540,-11734.04701031,0.0002713,2]
[310212430,1704402546102,-154.75239617,0.00026804,2]
[310212431,1704402546124,-154.75239617,0.00026805,4]
[310212432,1704402546144,-154.75239617,0.00026806,2]
[310212433,1704402546164,-2705.16083223,0.00027129,2]
[310212434,1704402546185,-1941.74317869,0.0002713,2]
[310212435,1704402546205,-154.75239617,0.0002713,2]
[310212436,1704402546226,-7032.08830867,0.0002713,7]
[310212437,1704402546247,-250.0,0.00027156,2]
[310212438,1704402546270,-1968.7283318,0.00027682,2]
[310212439,1704402546290,-466.2089925,0.00027997,2]
[310212440,1704402546310,-1211.44632189,0.00027998,2]
[310212441,1704402546330,-343.52308259,0.00027998,2]
[310212442,1704402546348,-235.68021843,0.00027998,2]
[310212443,1704402546370,-300.90710515,0.00027998,2]
[310212444,1704402546390,-1321.08258665,0.00027999,2]
[310212445,1704402546410,-344.36468707,0.00028,2]
[310212446,1704402546429,-3102.86235415,0.00029,2]
[310212447,1704402546450,-3473.50900465,0.0002919,2]
[310212448,1704402546471,-1996.64314445,0.0002949,2]
[310212449,1704402546492,-340.15098207,0.00029689,2]
[310212450,1704402546513,-492.84919818,0.00029758,2]
[310212451,1704402546534,-789.42881433,0.00029786,2]
[310212452,1704402546554,-679.68597997,0.00029786,2]
[310212453,1704402546574,-154.84515485,0.00029786,2]
[310212454,1704402546596,-154.78330338,0.00029786,2]
[310212455,1704402546618,-154.92253873,0.00029786,2]
[310212456,1704402546638,-164.65816911,0.00029786,2]
[310212457,1704402546659,-155.16060087,0.00029786,2]
[310212458,1704402546680,-171.0,0.00029786,2]
[310212459,1704402546699,-187.42630735,0.00029786,2]
[310212460,1704402546722,-393.58666177,0.00029786,2]
[310212461,1704402546741,-288.13093489,0.00029786,2]
[310212462,1704402546762,-861.18845043,0.00029786,2]
[310212463,1704402546783,-155.07719833,0.00029786,2]
[310212464,1704402546803,-279.26998469,0.00029786,2]
[310212465,1704402546826,-408.07432175,0.00029786,2]
[310212466,1704402546847,-212.56657091,0.00029786,2]
[310212467,1704402546869,-508.50377759,0.00029786,2]
[310212468,1704402546890,-524.84202363,0.00029786,2]
[310212469,1704402546912,-1573.36624275,0.00029786,2]
[310212470,1704402546932,-160.26909941,0.00029786,2]
[310212471,1704402546958,-195.1004424,0.00029786,2]
[310212472,1704402546977,-307.9896429,0.00029786,2]
[310212473,1704402546997,-327.44914543,0.00029786,2]
[310212474,1704402547016,-1191.72554798,0.00029786,2]
[310212475,1704402547036,-1645.94146869,0.00029786,2]
[310212476,1704402547055,-154.93793823,0.00029786,2]
[310212477,1704402547074,-155.11137159,0.00029786,2]
[310212478,1704402547093,-177.62370426,0.00029786,2]
[310212479,1704402547115,-369.24987704,0.00029787,2]
[310212480,1704402547135,-366.94747299,0.00029787,2]
[310212481,1704402547158,-3336.02552842,0.00029787,2]
[310212482,1704402547181,-589.8571833,0.00029787,2]
[310212483,1704402547201,-361.00981063,0.00029788,2]
[310212484,1704402547227,-7921.03715204,0.00029788,2]
[310212485,1704402547246,-176.22443073,0.00029788,2]
[310212486,1704402547268,-2987.87026641,0.00029788,2]
[310212488,1704402547288,-160.74311348,0.00029788,2]
[310212489,1704402547308,-553.40007214,0.00029788,2]
[310212490,1704402547329,-155.13281341,0.00029788,2]
[310212491,1704402547349,-157.86918355,0.00029788,2]
[310212492,1704402547373,-155.54876372,0.00029788,2]
[310212493,1704402547398,-16942.75451085,0.00029788,2]
[310212494,1704402547420,-294.04006646,0.00029788,2]
[310212495,1704402547441,-511.49884029,0.00029788,2]
[310212496,1704402547463,-516.10841447,0.00029788,2]
[310212497,1704402557147,297.07405751,0.0002,2]
[310212499,1704402565216,-219.14597209,0.0002713,2]
[310212500,1704402565236,-344.36468707,0.00028,2]
[310212501,1704402565257,-4703.17,0.0002978,3]
[310212502,1704402565277,-3919.31,0.0002978,3]
[310212503,1704402565297,-214.81903446,0.00029787,2]
[310212504,1704402565317,-13673.02936715,0.00029787,2]
[310212505,1704402565338,-2286.41286398,0.00029788,2]
[310212506,1704402565358,-433.14504265,0.00029788,2]
[310212507,1704402565388,-3893.10032845,0.00029788,2]
[310212508,1704402565408,-154.82968734,0.00029788,2]
[310212509,1704402565430,-589.81027724,0.00029788,2]
[310212510,1704402565451,-759.53629285,0.00029788,2]
[310212511,1704402565474,-154.84515485,0.00029788,2]
[310212512,1704402565495,-297.0513033,0.00029788,2]
[310212513,1704402565515,-285.30351426,0.00029788,2]
[310212514,1704402565535,-154.84515485,0.00029788,2]
[310212515,1704402565556,-4781.11668773,0.00029788,2]
[310212516,1704402565577,-160.93191398,0.00029788,2]
[310212517,1704402565597,-166.39262633,0.00029788,2]
[310212518,1704402565618,-689.62202558,0.00029788,2]
[310212519,1704402565640,-155.19581211,0.00029788,2]
[310212520,1704402565661,-164.10478437,0.00029788,2]
[310212521,1704402565682,-208.74007323,0.00029788,2]
[310212522,1704402565703,-299.52722811,0.00029788,2]
[310212523,1704402565724,-210.35410241,0.00029788,2]
[310212524,1704402565744,-160.06218714,0.00029788,2]
[310212525,1704402565766,-3102.86235415,0.00029788,2]
[310212526,1704402565786,-917.13964434,0.00029788,2]
[310212527,1704402565806,-1232.56547556,0.00029788,2]
[310212528,1704402565825,-291.57730732,0.00029789,2]
[310212529,1704402565846,-318.60863626,0.00029789,2]
[310212530,1704402565866,-197.67966796,0.00029789,2]
[310212531,1704402565886,-174.69270311,0.00029789,2]
[310212532,1704402565905,-286.91607316,0.00029789,2]
[310212533,1704402565925,-500.0,0.00029789,2]
[310212534,1704402565945,-196.72901828,0.00029789,2]
[310212535,1704402565965,-366.13493379,0.00029789,2]
[310212536,1704402565984,-274.74269213,0.00029789,2]
[310212537,1704402566004,-571.91074786,0.00029789,4]
[310212538,1704402566025,-252.22396159,0.00029789,4]
[310212539,1704402566044,-483.08778641,0.00029789,4]
[310212540,1704402566063,-161.35699755,0.00029789,4]
[310212541,1704402566083,-500.0,0.00029789,4]
[310212542,1704402566103,-205325.21846317,0.0002979,7]
[310212543,1704402566125,-496.1966346,0.000298,5]
[310212544,1704402566149,-200.0,0.00029857,15]
[310212545,1704402566168,-2749.0816799,0.0003,2]
[310212546,1704402566187,-1738.65285554,0.0003,2]
[310212547,1704402566206,-25031.75050161,0.0003,10]
[310212548,1704402566227,-685.53559507,0.0003,4]
[310212549,1704402566246,-6536.43197787,0.0003,4]
[310212550,1704402566266,-7027.47135002,0.0003,4]
[310212551,1704402566287,-638.6179028,0.0003,4]
[310212552,1704402566308,-243.37606438,0.0003,4]
[310212553,1704402566329,-155.99417347,0.0003,2]
[310212554,1704402566350,-782.10923875,0.0003,4]
[310212555,1704402566373,-228.19888231,0.0003,4]
[310212556,1704402566393,-300.0,0.0003,14]
[310212557,1704402566413,-221.0,0.0003,2]
[310212558,1704402566434,-340.15098204,0.00030289,2]
[310212559,1704402566454,-340.15098204,0.0003089,2]
[310212560,1704402566475,-41284.20541364,0.00031,4]